[Event "XXXIX Benasque Open 2019"]
[Site "Benasque"]
[Date "2019.07.05"]
[Round "2.5"]
[White "Prraneeth Vuppala"]
[Black "Deac, Bogdan-Daniel"]
[Result "0-1"]
[ECO "A62"]
[WhiteElo "2201"]
[BlackElo "2621"]
[Annotator "RC"]
[PlyCount "76"]
[EventDate "2019.07.04"]
[EventType "swiss"]
[EventCountry "ESP"]
[SourceTitle "playchess.com"]
[Source "ChessBase"]
[SourceQuality "1"]
[TimeControl "5400+30"]

1. d4 {[%emt 0:00:00]} Nf6 {[%emt 0:00:00]} 2. c4 {[%emt 0:00:00]} e6 {[%emt 0:00:07]} 3. g3 {[%emt 0:00:00]} c5 {[%emt 0:00:11]} 4. d5 {[%emt 0:00:00]} exd5 {[%emt 0:00:09]} 5. cxd5 {[%emt 0:00:00]} d6 {[%emt 0:00:08]} 6. Nc3 {[%emt 0:00:00]} g6 {[%emt 0:00:08]} 7. Bg2 {[%emt 0:00:00]} Bg7 {[%emt 0:00:11]} 8. Nf3 {[%emt 0:00:00]} O-O {[%emt 0:00:12]} 9. O-O {[%emt 0:00:00]} Re8 {[%emt 0:00:09]} 10. Bf4 {[%emt 0:00:00]} h6 {[%emt 0:00:11]} 11. Qc1 {[%emt 0:21:12]} g5 {[%emt 0:00:05]} 12. Be3 {[%emt 0:00:28]} Bf5 {[%emt 0:00:21]} 13. h4 {[%emt 0:19:47]} g4 {[%emt 0:00:03]} 14. Nd2 {[%emt 0:04:47]} Rxe3 {[%emt 0:06:02]} 15. fxe3 {[%emt 0:00:02]} Bg6 {[%emt 0:00:01]} 16. Nc4 {[%emt 0:17:23]} Nh5 {[%emt 0:03:31]} 17. Qe1 {[%emt 0:00:20]} Na6 {[%emt 0:18:03]} 18. e4 {[%emt 0:19:20]} Qe7 {[%emt 0:00:30]} 19. e5 Bxe5 20. Nxe5 {[%emt 0:01:00]} Qxe5 {[%emt 0:00:12]} 21. Kh2 {[%emt 0:01:17]} Nb4 {[%emt 0:00:10]} 22. Rc1 {[%emt 0:02:49]} Nc2 {[%emt 0:01:08]} 23. Rxc2 {[%emt 0:03:15]} Bxc2 {[%emt 0:00:04]} 24. e4 {[%emt 0:00:05]} Re8 {[%emt 0:00:50]} 25. Qf2 {[%emt 0:09:44]} Re7 {[%emt 0:00:10]} 26. Qxc2 {[%emt 0:00:25]} Nxg3 {[%emt 0:00:12]} 27. Re1 {[%emt 0:00:13]} Nxe4+ {[%emt 0:04:29]} 28. Kg1 {[%emt 0:00:11]} Qd4+ {[%emt 0:00:13]} 29. Kh2 {[%emt 0:00:14]} g3+ {[%emt 0:00:19]} 30. Kh3 {[%emt 0:00:06]} Nf2+ {[%emt 0:01:38]} 31. Kxg3 {[%emt 0:00:03]} Qg4+ {[%emt 0:00:18]} 32. Kxf2 {[%emt 0:00:35]} Qxh4+ {[%emt 0:00:07]} 33. Kf3 {[%emt 0:01:49]} Qxe1 {[%emt 0:00:34]} 34. Ne2 {[%emt 0:00:42]} Re5 {[%emt 0:01:42]} 35. Qd3 {[%emt 0:00:49]} Qh4 {[%emt 0:00:38]} 36. Nf4 {[%emt 0:00:40]} Rg5 {[%emt 0:00:30]} 37. Qe4 {[%emt 0:00:38]} Qg3+ {[%emt 0:00:18]} 38. Ke2 {[%emt 0:00:02]} Re5 {[%emt 0:00:08]} 0-1

[Event "XXXIX Benasque Open 2019"]
[Site "Benasque"]
[Date "2019.07.05"]
[Round "2.6"]
[White "Indjic, Aleksandar"]
[Black "Alvarez Nistal, David"]
[Result "1-0"]
[ECO "A06"]
[WhiteElo "2604"]
[BlackElo "2189"]
[Annotator "RC"]
[PlyCount "87"]
[EventDate "2019.07.04"]
[EventType "swiss"]
[EventCountry "ESP"]
[SourceTitle "playchess.com"]
[Source "ChessBase"]
[SourceQuality "1"]
[TimeControl "5400+30"]

1. Nf3 {[%emt 0:02:00]} d5 {[%emt 0:00:00]} 2. g3 {[%emt 0:00:53]} Nf6 {[%emt 0:00:23]} 3. Bg2 {[%emt 0:00:13]} c6 {[%emt 0:00:39]} 4. d3 {[%emt 0:00:14]} Bg4 {[%emt 0:01:07]} 5. h3 {[%emt 0:00:11]} Bh5 {[%emt 0:02:36]} 6. g4 {[%emt 0:00:58]} Bg6 {[%emt 0:00:24]} 7. Nh4 {[%emt 0:00:08]} e6 {[%emt 0:15:49]} 8. Nd2 {[%emt 0:00:46]} Nfd7 {[%emt 0:03:25]} 9. Nxg6 {[%emt 0:07:31]} hxg6 {[%emt 0:00:11]} 10. e4 {[%emt 0:09:49]} Be7 {[%emt 0:13:43]} 11. O-O {[%emt 0:05:03]} dxe4 {[%emt 0:09:01]} 12. Nxe4 {[%emt 0:01:42]} Nf6 {[%emt 0:07:29]} 13. Ng3 {[%emt 0:02:18]} Qc7 {[%emt 0:03:28]} 14. Rb1 {[%emt 0:02:14]} a5 {[%emt 0:09:15]} 15. c4 Nbd7 {[%emt 0:03:36]} 16. d4 {[%emt 0:03:47]} Bd6 {[%emt 0:03:41]} 17. Qf3 {[%emt 0:03:08]} O-O {[%emt 0:01:18]} 18. g5 {[%emt 0:04:34]} Ne8 {[%emt 0:03:24]} 19. Ne4 {[%emt 0:01:47]} e5 {[%emt 0:03:07]} 20. Be3 {[%emt 0:16:34]} exd4 {[%emt 0:02:35]} 21. Bxd4 {[%emt 0:00:08]} Be5 {[%emt 0:04:36]} 22. Qc3 {[%emt 0:00:10]} c5 {[%emt 0:02:54]} 23. Bxe5 {[%emt 0:00:10]} Qxe5 {[%emt 0:00:46]} 24. Rfd1 {[%emt 0:00:39]} Qxc3 {[%emt 0:01:01]} 25. bxc3 {[%emt 0:00:16]} Ne5 {[%emt 0:00:36]} 26. Rd5 {[%emt 0:03:23]} Nxc4 {[%emt 0:01:25]} 27. Bf1 {[%emt 0:00:39]} Na3 {[%emt 0:01:41]} 28. Rxb7 {[%emt 0:01:16]} Rc8 {[%emt 0:01:30]} 29. Rdd7 {[%emt 0:02:17]} Rc6 {[%emt 0:01:42]} 30. h4 {[%emt 0:03:55]} c4 {[%emt 0:00:28]} 31. Bh3 {[%emt 0:03:04]} Nc2 {[%emt 0:01:11]} 32. Kf1 {[%emt 0:00:26]} a4 {[%emt 0:01:55]} 33. Ke2 {[%emt 0:01:48]} Ra6 {[%emt 0:00:30]} 34. Kd2 {[%emt 0:00:28]} Na3 {[%emt 0:00:32]} 35. Kc1 {[%emt 0:05:23]} Ra5 {[%emt 0:00:11]} 36. f4 {[%emt 0:00:10]} Rb5 {[%emt 0:00:32]} 37. Rxb5 {[%emt 0:02:03]} Nxb5 {[%emt 0:00:06]} 38. Bf1 {[%emt 0:00:05]} Nbc7 {[%emt 0:01:19]} 39. Bxc4 {[%emt 0:00:09]} Ne6 {[%emt 0:00:07]} 40. Bxe6 {[%emt 0:00:51]} fxe6 {[%emt 0:00:06]} 41. Re7 {[%emt 0:00:05]} Kh7 {[%emt 0:01:25]} 42. Kd2 {[%emt 0:01:15]} Rxf4 {[%emt 0:00:25]} 43. Ke3 {[%emt 0:00:08]} Rf8 {[%emt 0:00:45]} 44. c4 {[%emt 0:00:10]} 1-0

[Event "XXXIX Benasque Open 2019"]
[Site "Benasque"]
[Date "2019.07.05"]
[Round "2.7"]
[White "Calvo Simon, Jorge"]
[Black "Martinez Alcantara, Jose Eduardo"]
[Result "0-1"]
[ECO "B90"]
[WhiteElo "2192"]
[BlackElo "2601"]
[Annotator "RC"]
[PlyCount "42"]
[EventDate "2019.07.04"]
[EventType "swiss"]
[EventCountry "ESP"]
[SourceTitle "playchess.com"]
[Source "ChessBase"]
[SourceQuality "1"]
[TimeControl "5400+30"]

1. Nf3 {[%emt 0:06:23]} c5 {[%emt 0:00:00]} 2. e4 {[%emt 0:01:50]} d6 {[%emt 0:00:00]} 3. d4 {[%emt 0:00:04]} cxd4 {[%emt 0:00:00]} 4. Nxd4 {[%emt 0:00:06]} Nf6 {[%emt 0:00:00]} 5. Nc3 {[%emt 0:00:08]} a6 {[%emt 0:00:00]} 6. h3 {[%emt 0:00:11]} e5 {[%emt 0:00:00]} 7. Nde2 {[%emt 0:00:12]} h5 {[%emt 0:00:30]} 8. g3 {[%emt 0:07:04]} Be6 {[%emt 0:01:21]} 9. Bg2 {[%emt 0:00:22]} b5 {[%emt 0:06:15]} 10. Bg5 {[%emt 0:06:58]} Nbd7 {[%emt 0:03:42]} 11. O-O {[%emt 0:00:58]} Be7 {[%emt 0:03:10]} 12. a3 {[%emt 0:04:34]} Rc8 {[%emt 0:03:57]} 13. f4 {[%emt 0:06:41]} Qb6+ {[%emt 0:01:52]} 14. Rf2 {[%emt 0:08:45]} Bc4 {[%emt 0:03:17]} 15. Qd2 {[%emt 0:06:31]} d5 {[%emt 0:14:30]} 16. b4 Bxe2 {[%emt 0:15:49]} 17. Bxf6 {[%emt 0:07:50]} Nxf6 {[%emt 0:06:07]} 18. fxe5 {[%emt 0:08:10]} Rxc3 {[%emt 0:02:53]} 19. exf6 {[%emt 0:01:36]} Bxf6 {[%emt 0:01:10]} 20. e5 {[%emt 0:00:11]} Bxe5 {[%emt 0:02:04]} 21. Qxe2 {[%emt 0:01:50]} Re3 {[%emt 0:00:38]} 0-1

[Event "XXXIX Benasque Open 2019"]
[Site "Benasque"]
[Date "2019.07.05"]
[Round "2.8"]
[White "Bartel, Mateusz"]
[Black "Garcia Trobat, Francisco"]
[Result "1-0"]
[ECO "A45"]
[WhiteElo "2600"]
[BlackElo "2183"]
[Annotator "RC"]
[PlyCount "123"]
[EventDate "2019.07.04"]
[EventType "swiss"]
[EventCountry "ESP"]
[SourceTitle "playchess.com"]
[Source "ChessBase"]
[SourceQuality "1"]
[TimeControl "5400+30"]

1. d4 {[%emt 0:00:00]} Nf6 {[%emt 0:01:19]} 2. Bg5 {[%emt 0:00:00]} Ne4 {[%emt 0:01:00]} 3. Bf4 {[%emt 0:01:14]} e6 {[%emt 0:00:46]} 4. e3 {[%emt 0:01:48]} Bd6 {[%emt 0:01:10]} 5. Bxd6 {[%emt 0:12:45]} Nxd6 {[%emt 0:01:21]} 6. Nc3 {[%emt 0:02:09]} b6 {[%emt 0:02:32]} 7. Be2 {[%emt 0:01:25]} Bb7 {[%emt 0:00:36]} 8. Bf3 {[%emt 0:01:15]} Nc6 {[%emt 0:00:13]} 9. Nge2 {[%emt 0:07:28]} Qe7 {[%emt 0:03:25]} 10. Nf4 {[%emt 0:02:11]} Nc4 {[%emt 0:11:04]} 11. b3 {[%emt 0:09:45]} Nd6 {[%emt 0:06:25]} 12. Qd2 {[%emt 0:00:03]} a5 {[%emt 0:00:18]} 13. O-O {[%emt 0:01:47]} g5 {[%emt 0:01:43]} 14. Nd3 {[%emt 0:02:09]} O-O-O {[%emt 0:03:08]} 15. d5 {[%emt 0:01:13]} Nb4 {[%emt 0:02:09]} 16. e4 {[%emt 0:01:01]} h5 17. a3 {[%emt 0:23:37]} Nxd3 {[%emt 0:12:54]} 18. Qxd3 {[%emt 0:00:12]} g4 {[%emt 0:00:19]} 19. Be2 {[%emt 0:00:02]} f5 {[%emt 0:00:43]} 20. e5 {[%emt 0:02:14]} Ne4 {[%emt 0:02:19]} 21. d6 {[%emt 0:00:55]} cxd6 {[%emt 0:04:00]} 22. Nxe4 {[%emt 0:05:41]} fxe4 {[%emt 0:01:14]} 23. Qxd6 {[%emt 0:01:38]} Qxd6 {[%emt 0:00:16]} 24. exd6 {[%emt 0:00:05]} Rdf8 {[%emt 0:00:30]} 25. b4 {[%emt 0:00:03]} Rf5 {[%emt 0:01:20]} 26. bxa5 {[%emt 0:03:09]} bxa5 {[%emt 0:00:48]} 27. Rab1 {[%emt 0:01:45]} e3 {[%emt 0:06:03]} 28. fxe3 {[%emt 0:01:03]} Rhf8 {[%emt 0:00:58]} 29. Bd3 {[%emt 0:04:35]} Rxf1+ {[%emt 0:00:14]} 30. Rxf1 {[%emt 0:00:04]} Rxf1+ {[%emt 0:00:09]} 31. Kxf1 {[%emt 0:00:04]} Bc6 {[%emt 0:00:24]} 32. g3 {[%emt 0:01:24]} Kb7 {[%emt 0:03:32]} 33. Ke1 {[%emt 0:00:51]} Bf3 {[%emt 0:01:57]} 34. Bg6 {[%emt 0:00:50]} Kc6 {[%emt 0:00:22]} 35. Bxh5 {[%emt 0:00:08]} Kxd6 {[%emt 0:00:07]} 36. h4 {[%emt 0:01:38]} Ke5 {[%emt 0:07:48]} 37. Bg6 {[%emt 0:00:29]} Kf6 {[%emt 0:02:03]} 38. Bd3 {[%emt 0:00:04]} d5 {[%emt 0:01:45]} 39. Be2 {[%emt 0:01:29]} e5 {[%emt 0:02:08]} 40. Kf2 {[%emt 0:00:04]} Be4 {[%emt 0:01:00]} 41. c4 {[%emt 0:05:21]} dxc4 {[%emt 0:02:17]} 42. Bxc4 {[%emt 0:00:02]} Bg6 {[%emt 0:01:28]} 43. Ke2 {[%emt 0:00:03]} Ke7 {[%emt 0:02:26]} 44. Kd2 {[%emt 0:00:02]} Kd6 {[%emt 0:00:07]} 45. Kc3 {[%emt 0:00:37]} Kc5 {[%emt 0:00:42]} 46. Be6 {[%emt 0:00:07]} Bh5 {[%emt 0:00:17]} 47. Bf5 {[%emt 0:00:03]} Kb5 {[%emt 0:00:49]} 48. Bd7+ {[%emt 0:04:51]} Kc5 {[%emt 0:00:05]} 49. Kd3 {[%emt 0:00:10]} Bg6+ {[%emt 0:00:30]} 50. Kd2 {[%emt 0:00:11]} Bh5 {[%emt 0:00:14]} 51. Kc3 {[%emt 0:00:02]} Kd6 {[%emt 0:01:15]} 52. Bf5 {[%emt 0:00:30]} Kc5 {[%emt 0:00:53]} 53. Kd3 {[%emt 0:00:10]} Kd5 {[%emt 0:00:44]} 54. Bh7 {[%emt 0:00:14]} Bf7 {[%emt 0:01:04]} 55. Be4+ {[%emt 0:00:06]} Kc5 {[%emt 0:01:10]} 56. Bf5 {[%emt 0:00:06]} Bh5 {[%emt 0:00:40]} 57. Ke4 {[%emt 0:00:02]} Kd6 {[%emt 0:00:33]} 58. Bh7 {[%emt 0:00:05]} Ke6 {[%emt 0:00:17]} 59. Bg8+ {[%emt 0:00:07]} Kf6 {[%emt 0:00:35]} 60. Kd5 {[%emt 0:00:10]} Kf5 {[%emt 0:02:53]} 61. Be6+ {[%emt 0:00:18]} Kf6 {[%emt 0:00:02]} 62. Kd6 {[%emt 0:00:07]} 1-0

[Event "XXXIX Benasque Open 2019"]
[Site "Benasque"]
[Date "2019.07.05"]
[Round "2.9"]
[White "Garcia Romero, Benjamin Abel"]
[Black "Markus, Robert"]
[Result "0-1"]
[ECO "C06"]
[WhiteElo "2188"]
[BlackElo "2595"]
[Annotator "ChessBase"]
[PlyCount "128"]
[EventDate "2019.07.04"]
[EventType "swiss"]
[EventCountry "ESP"]
[SourceTitle "playchess.com"]
[Source "ChessBase"]
[SourceQuality "1"]
[TimeControl "5400+30"]

1. e4 {[%emt 0:05:35]} e6 {[%emt 0:00:00]} 2. d4 {[%emt 0:00:50]} d5 {[%emt 0:00:00]} 3. Nd2 {[%emt 0:00:56]} Nf6 {[%emt 0:00:00]} 4. e5 {[%emt 0:00:16]} Nfd7 {[%emt 0:00:00]} 5. Bd3 {[%emt 0:00:34]} c5 {[%emt 0:00:05]} 6. c3 {[%emt 0:00:15]} Nc6 {[%emt 0:00:07]} 7. Ne2 {[%emt 0:00:46]} cxd4 {[%emt 0:00:13]} 8. cxd4 {[%emt 0:00:10]} f6 {[%emt 0:00:04]} 9. exf6 {[%emt 0:00:08]} Nxf6 {[%emt 0:00:09]} 10. Nf3 {[%emt 0:01:03]} Qc7 {[%emt 0:00:12]} 11. O-O {[%emt 0:00:17]} Bd6 {[%emt 0:00:05]} 12. Bg5 {[%emt 0:00:25]} O-O {[%emt 0:00:09]} 13. Bh4 {[%emt 0:00:24]} Nh5 {[%emt 0:00:10]} 14. Rc1 {[%emt 0:05:30]} Bd7 {[%emt 0:08:31]} 15. a3 {[%emt 0:08:16]} h6 {[%emt 0:14:04]} 16. Bb1 {[%emt 0:04:00]} Be8 {[%emt 0:04:00]} 17. Re1 {[%emt 0:11:19]} g5 {[%emt 0:08:10]} 18. Bg3 {[%emt 0:00:09]} Nxg3 {[%emt 0:00:38]} 19. Nxg3 {[%emt 0:00:16]} Rf6 {[%emt 0:00:00]} 20. Ne5 {[%emt 0:01:59]} Bxe5 {[%emt 0:03:30]} 21. dxe5 {[%emt 0:04:08]} Rf4 {[%emt 0:04:47]} 22. b4 a6 {[%emt 0:05:41]} 23. Ne2 {[%emt 0:20:49]} Bh5 {[%emt 0:03:40]} 24. Qd3 {[%emt 0:05:05]} Bxe2 {[%emt 0:03:52]} 25. Qg6+ {[%emt 0:01:13]} Qg7 {[%emt 0:00:29]} 26. Qxe6+ {[%emt 0:00:29]} Kh8 {[%emt 0:01:59]} 27. Rxe2 {[%emt 0:00:15]} Nd4 {[%emt 0:00:15]} 28. Rc8+ {[%emt 0:00:14]} Rxc8 {[%emt 0:01:12]} 29. Qxc8+ {[%emt 0:00:06]} Rf8 {[%emt 0:00:06]} 30. Qg4 {[%emt 0:00:52]} Nxe2+ {[%emt 0:00:14]} 31. Qxe2 {[%emt 0:00:05]} Rc8 {[%emt 0:01:32]} 32. Bc2 {[%emt 0:04:26]} Re8 {[%emt 0:04:14]} 33. Qd3 {[%emt 0:00:19]} Rxe5 {[%emt 0:00:14]} 34. g3 {[%emt 0:00:04]} Qe7 {[%emt 0:03:34]} 35. Kg2 {[%emt 0:03:00]} Re2 {[%emt 0:05:41]} 36. Qg6 {[%emt 0:00:55]} Re6 {[%emt 0:00:57]} 37. Qf5 {[%emt 0:02:30]} Rd6 {[%emt 0:02:14]} 38. Bd3 {[%emt 0:02:28]} Kg8 {[%emt 0:00:36]} 39. Qc8+ {[%emt 0:02:33]} Kg7 {[%emt 0:02:13]} 40. Qf5 {[%emt 0:00:11]} Qf7 {[%emt 0:05:47]} 41. Qh7+ {[%emt 0:00:46]} Kf8 {[%emt 0:00:08]} 42. Qh8+ {[%emt 0:00:25]} Ke7 {[%emt 0:00:39]} 43. Qc8 {[%emt 0:00:09]} b5 {[%emt 0:05:22]} 44. Bf5 {[%emt 0:03:27]} Kf6 {[%emt 0:01:17]} 45. Bd3 {[%emt 0:00:58]} Kg7 {[%emt 0:01:14]} 46. Qc5 {[%emt 0:02:46]} Rf6 {[%emt 0:01:47]} 47. h3 Qe6 {[%emt 0:02:08]} 48. Qd4 {[%emt 0:02:33]} Qb6 {[%emt 0:00:39]} 49. Qb2 {[%emt 0:01:17]} Kf7 {[%emt 0:03:14]} 50. Bh7 {[%emt 0:02:05]} h5 {[%emt 0:00:59]} 51. Qd2 {[%emt 0:00:48]} Kf8 {[%emt 0:01:24]} 52. Bc2 h4 53. Bd1 {[%emt 0:04:46]} hxg3 {[%emt 0:02:00]} 54. fxg3 {[%emt 0:00:19]} Qe6 {[%emt 0:01:11]} 55. Bf3 Rf5 {[%emt 0:02:00]} 56. Qc2 {[%emt 0:01:56]} Qe5 {[%emt 0:01:35]} 57. Qd2 {[%emt 0:01:04]} Kg7 {[%emt 0:00:21]} 58. Qc2 {[%emt 0:00:58]} Rf7 {[%emt 0:00:29]} 59. Qd2 d4 60. Bh5 {[%emt 0:02:19]} Rf6 {[%emt 0:00:54]} 61. Qc2 {[%emt 0:00:30]} Qe3 {[%emt 0:01:09]} 62. Bg4 {[%emt 0:00:23]} d3 {[%emt 0:00:37]} 63. Qc7+ {[%emt 0:00:31]} Kh6 {[%emt 0:00:00]} 64. Bf5 Rxf5 0-1

[Event "XXXIX Benasque Open 2019"]
[Site "Benasque"]
[Date "2019.07.05"]
[Round "2.10"]
[White "Rasmussen, Allan Stig"]
[Black "Lamas Mercadal, Manuel"]
[Result "1-0"]
[ECO "A40"]
[WhiteElo "2569"]
[BlackElo "2177"]
[Annotator "ChessBase"]
[PlyCount "41"]
[EventDate "2019.07.04"]
[EventType "swiss"]
[EventCountry "ESP"]
[SourceTitle "playchess.com"]
[Source "ChessBase"]
[SourceQuality "1"]
[TimeControl "5400+30"]

1. d4 {[%emt 0:00:00]} e6 {[%emt 0:00:00]} 2. c4 {[%emt 0:00:00]} f5 {[%emt 0:00:00]} 3. Nf3 {[%emt 0:00:15]} Nf6 {[%emt 0:00:03]} 4. e3 {[%emt 0:00:53]} b6 {[%emt 0:01:43]} 5. Bd3 {[%emt 0:00:13]} Bb7 {[%emt 0:00:18]} 6. O-O {[%emt 0:00:08]} Bd6 {[%emt 0:00:54]} 7. Nc3 {[%emt 0:00:37]} O-O {[%emt 0:00:25]} 8. b3 {[%emt 0:02:55]} Ne4 {[%emt 0:02:28]} 9. Bxe4 {[%emt 0:09:48]} fxe4 {[%emt 0:01:24]} 10. Nd2 {[%emt 0:00:24]} Qh4 {[%emt 0:05:45]} 11. g3 {[%emt 0:03:46]} Qh3 {[%emt 0:00:42]} 12. Ndxe4 {[%emt 0:09:24]} Nc6 {[%emt 0:15:01]} 13. f3 {[%emt 0:08:57]} Ne7 {[%emt 0:04:46]} 14. Nxd6 {[%emt 0:01:55]} cxd6 {[%emt 0:00:24]} 15. e4 {[%emt 0:05:57]} d5 {[%emt 0:03:14]} 16. Ba3 {[%emt 0:08:52]} Rf7 {[%emt 0:02:22]} 17. Qd3 {[%emt 0:00:30]} dxc4 {[%emt 0:03:02]} 18. bxc4 Ng6 19. Bd6 {[%emt 0:04:37]} h5 {[%emt 0:07:28]} 20. Ne2 Rc8 {[%emt 0:00:30]} 21. Kh1 {[%emt 0:07:10]} 1-0

[Event "XXXIX Benasque Open 2019"]
[Site "Benasque"]
[Date "2019.07.06"]
[Round "3.1"]
[White "Piorun, Kacper"]
[Black "Ruperez Benito, Antonio"]
[Result "1-0"]
[ECO "C02"]
[WhiteElo "2656"]
[BlackElo "2350"]
[Annotator "RC"]
[PlyCount "143"]
[EventDate "2019.07.04"]
[EventType "swiss"]
[EventCountry "ESP"]
[SourceTitle "playchess.com"]
[Source "ChessBase"]
[SourceQuality "1"]
[TimeControl "5400+30"]

1. e4 {[%emt 0:00:00]} e6 {[%emt 0:00:00]} 2. d4 {[%emt 0:00:00]} d5 {[%emt 0:00:00]} 3. e5 {[%emt 0:00:00]} c5 {[%emt 0:00:00]} 4. c3 {[%emt 0:00:00]} Qb6 {[%emt 0:00:00]} 5. Nf3 {[%emt 0:00:00]} Nc6 {[%emt 0:00:00]} 6. a3 {[%emt 0:00:00]} Nh6 {[%emt 0:00:02]} 7. b4 {[%emt 0:00:27]} cxd4 {[%emt 0:00:06]} 8. Bxh6 {[%emt 0:00:15]} gxh6 {[%emt 0:00:05]} 9. cxd4 {[%emt 0:00:04]} Bd7 {[%emt 0:03:37]} 10. Ra2 {[%emt 0:01:03]} Rg8 {[%emt 0:05:56]} 11. g3 {[%emt 0:03:15]} Rg4 {[%emt 0:10:17]} 12. Rd2 {[%emt 0:00:05]} a5 {[%emt 0:11:20]} 13. b5 {[%emt 0:01:07]} Na7 {[%emt 0:02:06]} 14. Bd3 {[%emt 0:00:53]} Bxb5 {[%emt 0:15:03]} 15. O-O {[%emt 0:00:09]} Rc8 {[%emt 0:06:02]} 16. Rb2 {[%emt 0:09:42]} Qc6 {[%emt 0:00:50]} 17. Bxb5 {[%emt 0:07:03]} Nxb5 {[%emt 0:00:25]} 18. Qd3 {[%emt 0:06:28]} Na7 {[%emt 0:03:18]} 19. Qxh7 {[%emt 0:03:47]} b5 {[%emt 0:01:38]} 20. Qd3 {[%emt 0:05:49]} Kd7 {[%emt 0:10:51]} 21. Kg2 {[%emt 0:03:56]} Qc4 {[%emt 0:04:09]} 22. Qd1 {[%emt 0:08:47]} Rg8 {[%emt 0:03:15]} 23. Re1 {[%emt 0:06:32]} Be7 {[%emt 0:03:18]} 24. Ree2 {[%emt 0:05:24]} Rc6 {[%emt 0:03:04]} 25. Qd2 {[%emt 0:02:26]} b4 {[%emt 0:01:46]} 26. axb4 {[%emt 0:00:15]} axb4 {[%emt 0:00:34]} 27. Qxh6 {[%emt 0:00:57]} Nb5 {[%emt 0:00:19]} 28. Qe3 {[%emt 0:08:03]} Rgc8 {[%emt 0:03:36]} 29. h4 {[%emt 0:05:14]} Na3 {[%emt 0:02:18]} 30. Ne1 {[%emt 0:07:21]} Qc1 {[%emt 0:03:09]} 31. Qb3 {[%emt 0:02:46]} Qc4 {[%emt 0:00:56]} 32. Qe3 {[%emt 0:02:59]} Qc1 {[%emt 0:00:47]} 33. Qd3 {[%emt 0:01:24]} Qc4 {[%emt 0:01:18]} 34. Nd2 {[%emt 0:04:52]} Qxd3 {[%emt 0:03:06]} 35. Nxd3 {[%emt 0:00:01]} Rc2 {[%emt 0:00:35]} 36. Nb3 {[%emt 0:00:28]} Rxe2 {[%emt 0:01:07]} 37. Rxe2 {[%emt 0:00:03]} Rc3 {[%emt 0:00:33]} 38. Ndc1 {[%emt 0:02:11]} Nb5 {[%emt 0:00:45]} 39. Rd2 {[%emt 0:00:42]} f6 {[%emt 0:00:21]} 40. f4 {[%emt 0:00:46]} Na3 {[%emt 0:00:38]} 41. exf6 {[%emt 0:01:11]} Bxf6 {[%emt 0:00:04]} 42. Nd3 {[%emt 0:00:09]} Ke7 {[%emt 0:01:12]} 43. Ndc5 {[%emt 0:02:10]} Rc2 {[%emt 0:01:29]} 44. Rxc2 {[%emt 0:01:02]} Nxc2 {[%emt 0:00:01]} 45. Nd3 {[%emt 0:00:07]} Bxd4 {[%emt 0:00:24]} 46. Nxb4 {[%emt 0:00:35]} Nxb4 {[%emt 0:00:02]} 47. Nxd4 {[%emt 0:00:10]} Kf6 {[%emt 0:00:43]} 48. Kf3 {[%emt 0:00:26]} Nd3 {[%emt 0:01:09]} 49. Ke3 {[%emt 0:00:29]} Nb2 {[%emt 0:00:19]} 50. g4 {[%emt 0:00:27]} Nc4+ {[%emt 0:00:18]} 51. Kf3 {[%emt 0:00:07]} e5 {[%emt 0:00:12]} 52. g5+ {[%emt 0:03:00]} Kg7 {[%emt 0:00:49]} 53. fxe5 {[%emt 0:00:11]} Nxe5+ {[%emt 0:00:05]} 54. Kf4 {[%emt 0:00:02]} Ng6+ {[%emt 0:00:06]} 55. Kg4 {[%emt 0:00:03]} Ne5+ {[%emt 0:01:24]} 56. Kf5 {[%emt 0:00:05]} Nf7 {[%emt 0:00:26]} 57. Ne6+ {[%emt 0:00:13]} Kg8 {[%emt 0:00:44]} 58. Kf6 {[%emt 0:01:05]} Nd6 {[%emt 0:00:23]} 59. Ke5 {[%emt 0:00:13]} Nc8 {[%emt 0:01:28]} 60. Kxd5 {[%emt 0:00:09]} Kf7 {[%emt 0:00:31]} 61. Nf4 {[%emt 0:00:06]} Ne7+ {[%emt 0:00:05]} 62. Ke5 {[%emt 0:00:04]} Nc6+ {[%emt 0:00:05]} 63. Kf5 {[%emt 0:00:04]} Nd4+ {[%emt 0:00:08]} 64. Ke4 {[%emt 0:00:11]} Nb5 {[%emt 0:00:11]} 65. h5 {[%emt 0:00:06]} Nd6+ {[%emt 0:00:29]} 66. Kf3 {[%emt 0:00:09]} Kg7 {[%emt 0:00:46]} 67. Kg4 {[%emt 0:00:12]} Nf7 {[%emt 0:00:10]} 68. Ne6+ {[%emt 0:00:09]} Kh8 {[%emt 0:00:31]} 69. g6 {[%emt 0:00:16]} Nd6 {[%emt 0:00:54]} 70. h6 {[%emt 0:00:25]} Kg8 {[%emt 0:00:17]} 71. Ng5 {[%emt 0:00:51]} Ne4 {[%emt 0:00:33]} 72. Nxe4 {[%emt 0:00:08]} 1-0

[Event "XXXIX Benasque Open 2019"]
[Site "Benasque"]
[Date "2019.07.06"]
[Round "3.3"]
[White "Cervello Tost, Ferran"]
[Black "Ter-Sahakyan, Samvel"]
[Result "0-1"]
[ECO "A40"]
[WhiteElo "2349"]
[BlackElo "2625"]
[Annotator "RC"]
[PlyCount "72"]
[EventDate "2019.07.04"]
[EventType "swiss"]
[EventCountry "ESP"]
[SourceTitle "playchess.com"]
[Source "ChessBase"]
[SourceQuality "1"]
[TimeControl "5400+30"]

1. d4 {[%emt 0:00:00]} e6 {[%emt 0:00:00]} 2. Nf3 {[%emt 0:00:00]} f5 {[%emt 0:00:00]} 3. g3 {[%emt 0:00:12]} Nf6 {[%emt 0:00:01]} 4. Bg2 {[%emt 0:00:05]} d5 {[%emt 0:00:05]} 5. O-O {[%emt 0:00:13]} Bd6 {[%emt 0:00:06]} 6. c4 {[%emt 0:00:54]} c6 {[%emt 0:00:09]} 7. b3 {[%emt 0:00:24]} Qe7 {[%emt 0:00:07]} 8. Bb2 {[%emt 0:02:14]} b6 {[%emt 0:03:27]} 9. Ne5 {[%emt 0:03:35]} Bb7 {[%emt 0:00:24]} 10. Nd2 {[%emt 0:02:37]} O-O {[%emt 0:00:21]} 11. Rc1 {[%emt 0:01:18]} a5 {[%emt 0:01:46]} 12. a4 {[%emt 0:01:53]} Na6 {[%emt 0:01:04]} 13. Nd3 {[%emt 0:04:49]} Ne4 {[%emt 0:14:54]} 14. f3 {[%emt 0:04:37]} Nxd2 {[%emt 0:00:08]} 15. Qxd2 {[%emt 0:00:05]} c5 {[%emt 0:00:23]} 16. e3 {[%emt 0:09:10]} dxc4 {[%emt 0:11:20]} 17. bxc4 {[%emt 0:01:16]} Nb4 {[%emt 0:00:09]} 18. e4 cxd4 {[%emt 0:01:14]} 19. exf5 {[%emt 0:08:37]} exf5 {[%emt 0:02:39]} 20. Rfe1 {[%emt 0:03:03]} Qf6 {[%emt 0:01:03]} 21. f4 {[%emt 0:00:16]} Bxg2 {[%emt 0:03:26]} 22. Kxg2 {[%emt 0:00:20]} Bc5 {[%emt 0:00:16]} 23. Re5 {[%emt 0:03:30]} Qc6+ {[%emt 0:00:26]} 24. Kg1 {[%emt 0:00:19]} Rae8 {[%emt 0:02:33]} 25. Rce1 {[%emt 0:00:58]} Nxd3 {[%emt 0:02:04]} 26. Qxd3 {[%emt 0:00:12]} Qxa4 {[%emt 0:00:29]} 27. Kf1 {[%emt 0:02:50]} Rd8 {[%emt 0:03:54]} 28. Re6 {[%emt 0:05:29]} Qd7 {[%emt 0:00:36]} 29. Ba3 {[%emt 0:01:00]} Qb7 {[%emt 0:03:37]} 30. Kf2 {[%emt 0:02:21]} Bxa3 {[%emt 0:04:32]} 31. Qxa3 {[%emt 0:00:03]} d3 {[%emt 0:00:11]} 32. Re7 {[%emt 0:01:24]} Qc6 {[%emt 0:01:23]} 33. Qc3 {[%emt 0:01:39]} Rf6 {[%emt 0:04:31]} 34. R7e3 {[%emt 0:06:49]} d2 {[%emt 0:01:29]} 35. Rd1 {[%emt 0:00:03]} Rfd6 {[%emt 0:01:17]} 36. Qe5 {[%emt 0:02:15]} Qa4 {[%emt 0:01:57]} 0-1